fUSD/lending_fUSD_20240118
["ID","MTS","AMOUNT","RATE_DAILY","PERIOD"]
[312019884,1705552244320,-500.0,0.00021917,2]
[312019885,1705552244330,-1531.02,0.00021917,2]
[312019886,1705552244340,-1339.38,0.00021917,2]
[312019887,1705552244350,-404.22988146,0.00021917,2]
[312019888,1705552244360,-4573.41,0.00021917,2]
[312019889,1705552244369,-681.55,0.00021917,2]
[312019890,1705552244379,-775.2,0.00021917,2]
[312019891,1705552244388,-500.0,0.00021917,2]
[312019892,1705552244398,-500.0,0.00021917,2]
[312019894,1705552244407,-787.16,0.00021917,2]
[312019896,1705552244416,-512.32690201,0.00021917,2]
[312019898,1705552244425,-509.27,0.00021917,2]
[312019900,1705552244434,-500.0,0.00021917,2]
[312019902,1705552244443,-1447.15,0.00021917,2]
[312019904,1705552244453,-648.6923115,0.00021917,2]
[312019906,1705552244462,-500.0,0.00021917,2]
[312019907,1705552244471,-500.0,0.00021917,2]
[312019910,1705552244480,-502.47803897,0.00021917,2]
[312019912,1705552244490,-2052.39,0.00021917,2]
[312019914,1705552244499,-505.55386665,0.00021917,2]
[312019916,1705552244512,-500.0,0.00021917,2]
[312019918,1705552244521,-718.58,0.00021917,2]
[312019920,1705552244530,-500.0,0.00021917,2]
[312019921,1705552244539,-500.0,0.00021917,2]
[312019922,1705552244548,-501.79939468,0.00021917,2]
[312019923,1705552244558,-500.0,0.00021917,2]
[312019924,1705552244568,-500.0,0.00021917,2]
[312019925,1705552244577,-523.28680482,0.00021917,2]
[312019926,1705552244587,-500.0,0.00021917,2]
[312019927,1705552244596,-538.73277932,0.00021917,2]
[312019928,1705552244605,-504.81210388,0.00021917,2]
[312019929,1705552244614,-500.0,0.00021917,2]
[312019930,1705552244623,-500.0,0.00021917,2]
[312019931,1705552244633,-1068.23,0.00021917,2]
[312019932,1705552244642,-1086.94,0.00021917,2]
[312019933,1705552244652,-500.91293119,0.00021917,2]
[312019934,1705552244661,-513.62568832,0.00021917,2]
[312019935,1705552244670,-500.0,0.00021917,2]
[312019936,1705552244680,-341.17244285,0.00021917,2]
[312019937,1705552244689,-355.90372113,0.00021917,2]
[312019938,1705552244698,-500.0,0.00021917,2]
[312019939,1705552244708,-500.0,0.00021917,2]
[312019940,1705552244717,-591.1,0.00021917,2]
[312019941,1705552244726,-321.64043726,0.00021917,2]
[312019942,1705552244735,-500.0,0.00021917,2]
[312019943,1705552244745,-503.6672686,0.00021917,2]
[312019944,1705552244754,-500.0,0.00021917,2]
[312019945,1705552244763,-503.92277985,0.00021917,2]
[312019946,1705552244773,-500.0,0.00021917,2]
[312019947,1705552244782,-500.0,0.00021917,2]
[312019948,1705552244791,-500.0,0.00021917,2]
[312019949,1705552244800,-510.28815247,0.00021917,2]
[312019950,1705552244809,-500.0,0.00021917,2]
[312019951,1705552244819,-509.62067534,0.00021917,2]
[312019952,1705552244828,-500.0,0.00021917,2]
[312019953,1705552244837,-500.0,0.00021917,2]
[312019954,1705552244846,-500.0,0.00021917,2]
[312019955,1705552244855,-1276.63,0.00021917,2]
[312019956,1705552244864,-540.25,0.00021917,2]
[312019957,1705552244874,-508.11790931,0.00021917,2]
[312019958,1705552244887,-500.0,0.00021917,2]
[312019959,1705552244897,-500.0,0.00021917,2]
[312019960,1705552244906,-500.0,0.00021917,2]
[312019961,1705552244916,-1113.08,0.00021917,2]
[312019962,1705552244926,-500.0,0.00021917,2]
[312019963,1705552244935,-500.0,0.00021917,2]
[312019964,1705552244945,-500.0,0.00021917,2]
[312019965,1705552244954,-506.98,0.00021917,2]
[312019966,1705552244964,-500.0,0.00021917,2]
[312019967,1705552244974,-500.0,0.00021917,2]
[312019968,1705552244984,-500.0,0.00021917,2]
[312019969,1705552244993,-3124.91,0.00021917,2]
[312019970,1705552245002,-500.0,0.00021917,2]
[312019971,1705552245011,-151.0,0.00021918,2]
[312019972,1705552245021,-151.0,0.00021918,2]
[312019973,1705552245030,-214.247934,0.00021918,2]
[312019974,1705552245040,-500.0,0.00021918,2]
[312019975,1705552245049,-500.0,0.00021918,2]
[312019976,1705552245058,-500.0,0.00021918,2]
[312019977,1705552245067,-500.0,0.00021918,2]
[312019978,1705552245077,-500.0,0.00021918,2]
[312019979,1705552245086,-500.0,0.00021918,2]
[312019980,1705552245096,-236.501162,0.00021918,2]
[312019981,1705552245105,-151.0,0.00021918,2]
[312019982,1705552245115,-151.0,0.00021918,2]
[312019983,1705552245125,-151.0,0.00021918,2]
[312019984,1705552245134,-151.0,0.00021918,2]
[312019985,1705552245143,-250.0,0.00021918,2]
[312019986,1705552245153,-188.316856,0.00021918,2]
[312019987,1705552245163,-151.0,0.00021918,2]
[312019988,1705552245173,-151.0,0.00021918,2]
[312019989,1705552245182,-151.0,0.00021918,2]
[312019990,1705552245192,-151.0,0.00021918,2]
[312019991,1705552245202,-151.0,0.00021918,2]
[312019992,1705552245211,-151.0,0.00021918,2]
[312019993,1705552245221,-179.76483827,0.00021925,2]
[312019994,1705552245230,-499.99999901,0.00022,2]
[312019995,1705552245240,-450.0,0.00022,3]
[312019996,1705552245249,-800.0,0.00022013,2]
[312019997,1705552245259,-204.252589,0.00022013,2]
[312019998,1705552245268,-202.055872,0.00022013,2]
[312019999,1705552245278,-800.0,0.00022014,2]
[312020000,1705552245287,-800.0,0.00022014,2]
[312020001,1705552245297,-162.67,0.00022047,2]
[312020002,1705552245306,-750.0,0.00022091,2]
[312020003,1705552245315,-5000.0,0.00022091,2]
[312020004,1705552245325,-151.0,0.00022091,7]
[312020005,1705552245335,-151.0,0.00022091,7]
[312020006,1705552245346,-190.616993,0.00022091,7]
[312020007,1705552245355,-329.78782878,0.00022091,2]
[312020008,1705552245364,-500.0,0.00022099,2]
[312020009,1705552245373,-904.91,0.00022099,2]
[312020010,1705552245382,-3000.0,0.000221,2]
[312020012,1705552245391,-250.0,0.000221,2]
[312020013,1705552245400,-154.01,0.00022108,2]
[312020014,1705552245410,-3000.0,0.0002211,2]
[312020015,1705552245419,-402.24811203,0.0002211,3]
[312020016,1705552245428,-156.82,0.00022119,2]
[312020017,1705552245438,-3000.0,0.0002212,2]
[312020018,1705552245449,-439.57132692,0.00022126,2]
[312020019,1705552245458,-3000.0,0.0002213,2]
[312020020,1705552245467,-151.0,0.0002213,7]
[312020021,1705552245476,-151.0,0.0002213,7]
[312020022,1705552245486,-3000.0,0.0002214,2]
[312020023,1705552245495,-151.51,0.00022141,2]
[312020024,1705552245504,-151.40118,0.00022148,3]
[312020025,1705552245513,-151.40118,0.00022148,3]
[312020026,1705552245524,-151.40118,0.00022148,3]
[312020027,1705552245533,-151.40118,0.00022148,3]
[312020028,1705552245542,-151.40118,0.00022148,3]
[312020029,1705552245551,-151.40118,0.00022148,3]
[312020030,1705552245560,-151.40118,0.00022148,3]
[312020031,1705552245569,-151.40118,0.00022148,3]
[312020032,1705552245579,-151.40118,0.00022148,3]
[312020033,1705552245589,-151.40118,0.00022148,3]
[312020034,1705552245600,-151.40118,0.00022148,3]
[312020035,1705552245610,-151.40118,0.00022148,3]
[312020036,1705552245619,-151.40118,0.00022148,3]
[312020037,1705552245628,-151.40118,0.00022148,3]
[312020038,1705552245637,-151.40118,0.00022148,3]
[312020039,1705552245646,-151.40118,0.00022148,3]
[312020040,1705552245655,-151.40118,0.00022148,3]
[312020041,1705552245665,-151.40118,0.00022148,3]
[312020042,1705552245674,-151.40118,0.00022148,3]
[312020043,1705552245683,-151.40118,0.00022148,3]
[312020044,1705552245692,-151.40118,0.00022148,3]
[312020045,1705552245702,-151.40118,0.00022148,3]
[312020046,1705552245711,-151.40118,0.00022148,3]
[312020047,1705552245722,-151.40118,0.00022148,3]
[312020048,1705552245732,-151.40118,0.00022148,3]
[312020049,1705552245741,-151.40118,0.00022148,3]
[312020050,1705552245750,-151.40118,0.00022148,3]
[312020051,1705552245760,-151.40118,0.00022148,3]
[312020052,1705552245769,-151.40118,0.00022148,3]
[312020053,1705552245779,-151.40118,0.00022148,3]
[312020054,1705552245788,-151.40118,0.00022148,3]
[312020055,1705552245798,-151.40118,0.00022148,3]
[312020056,1705552245808,-151.40118,0.00022148,3]
[312020057,1705552245819,-151.40118,0.00022148,3]
[312020058,1705552245829,-151.40118,0.00022148,3]
[312020059,1705552245840,-183.33444631,0.00022148,3]
[312020060,1705552245851,-500.0,0.00022149,2]
[312020061,1705552245860,-200.0,0.00022149,2]
[312020062,1705552245870,-3000.0,0.0002215,2]
[312020063,1705552245882,-3000.0,0.0002216,2]
[312020064,1705552245892,-3000.0,0.0002217,2]
[312020065,1705552245901,-3000.0,0.0002218,2]
[312020066,1705552245911,-12469.4427996,0.00022185,2]
[312020067,1705552245921,-244.17511499,0.0002219,2]
[312020068,1705552245931,-150.01,0.0002219,2]
[312020069,1705552245940,-3296.21810704,0.0002219,2]
[312020070,1705552245950,-3000.0,0.0002219,2]
[312020071,1705552245961,-500.0,0.0002219,2]
[312020072,1705552245970,-500.0,0.0002219,2]
[312020073,1705552245979,-500.0,0.0002219,2]
[312020074,1705552245988,-904.91,0.0002219,2]
[312020075,1705552245998,-500.0,0.0002219,7]
[312020076,1705552246007,-500.0,0.0002219,7]
[312020077,1705552246017,-500.0,0.00022191,7]
[312020078,1705552246026,-500.0,0.00022191,7]
[312020080,1705552246036,-500.0,0.00022191,7]
[312020081,1705552246045,-500.0,0.00022191,7]
[312020082,1705552246054,-500.0,0.00022191,7]
[312020083,1705552246063,-500.0,0.00022191,7]
[312020084,1705552246131,-218.113694,0.00022191,7]
[312020085,1705552246141,-171.745961,0.00022191,7]
[312020086,1705552246150,-151.0,0.00022191,7]
[312020087,1705552246160,-159.495401,0.00022191,7]
[312020088,1705552246169,-1011.83630549,0.00022191,2]
[312020089,1705552246178,-249.18894561,0.00022191,2]
[312020090,1705552246187,-500.0,0.00022191,2]
[312020091,1705552246197,-500.0,0.00022191,2]
[312020092,1705552246206,-500.0,0.00022191,2]
[312020093,1705552246215,-500.0,0.00022191,2]
[312020094,1705552246224,-500.0,0.00022191,2]
[312020095,1705552246234,-507.98660197,0.00022191,2]
[312020096,1705552246243,-500.0,0.00022191,2]
[312020097,1705552246252,-500.0,0.00022191,2]
[312020098,1705552246261,-500.0,0.00022191,2]
[312020099,1705552246271,-627.01059026,0.00022191,2]
[312020100,1705552246280,-500.0,0.00022191,2]
[312020101,1705552246290,-500.0,0.00022191,2]
[312020102,1705552246299,-500.0,0.00022191,2]
[312020103,1705552246308,-500.0,0.00022191,2]
[312020104,1705552246318,-500.0,0.00022191,2]
[312020105,1705552246328,-453.5459714,0.00022191,2]
[312020106,1705552246339,-500.0,0.00022191,2]
[312020107,1705552246351,-500.0,0.00022191,2]
[312020108,1705552246360,-903.86,0.00022191,2]
[312020109,1705552246369,-202.65748637,0.00022191,2]
[312020110,1705552246380,-500.0,0.00022191,2]
[312020111,1705552246391,-500.0,0.00022191,2]
[312020112,1705552246400,-500.0,0.00022191,2]
[312020113,1705552246412,-500.0,0.00022191,2]
[312020114,1705552246424,-425.77005634,0.00022191,2]
[312020115,1705552246434,-671.68,0.00022191,2]
[312020116,1705552246444,-500.0,0.00022191,2]
[312020117,1705552246454,-500.0,0.00022191,2]
[312020118,1705552246463,-500.0,0.00022191,2]
[312020119,1705552246474,-500.0,0.00022191,2]
[312020120,1705552246483,-500.0,0.00022191,2]
[312020121,1705552246493,-153.54648296,0.00022191,2]
[312020122,1705552246504,-500.0,0.00022191,2]
[312020123,1705552246514,-518.99830087,0.00022191,2]
[312020124,1705552246524,-500.0,0.00022191,2]
[312020125,1705552246535,-399.03938091,0.00022191,2]
[312020126,1705552246545,-291.49,0.00022191,2]
[312020127,1705552246554,-464.40784846,0.00022191,2]
[312020128,1705552246564,-500.0,0.00022191,2]
[312020129,1705552246574,-510.04072037,0.00022191,2]
[312020130,1705552246584,-500.0,0.00022191,2]
[312020131,1705552246595,-520.83572149,0.00022191,2]
[312020132,1705552246605,-500.0,0.00022191,2]
[312020133,1705552246614,-500.0,0.00022191,2]
[312020134,1705552246624,-500.0,0.00022191,2]
[312020135,1705552246633,-500.0,0.00022191,2]
[312020136,1705552246643,-500.0,0.00022191,2]
[312020137,1705552246652,-518.77234941,0.00022191,2]
[312020138,1705552246661,-500.0,0.00022191,2]
[312020139,1705552246670,-500.0,0.00022191,2]
[312020140,1705552246680,-182.39089519,0.00022191,2]
[312020141,1705552246689,-500.0,0.00022191,2]
[312020142,1705552246698,-500.0,0.00022191,2]
[312020143,1705552246708,-500.0,0.00022191,2]
[312020144,1705552246717,-500.0,0.00022191,2]
[312020145,1705552246726,-575.68,0.00022191,2]
[312020146,1705552246735,-500.0,0.00022191,2]
[312020147,1705552246744,-500.0,0.00022191,2]
[312020148,1705552246753,-500.0,0.00022191,2]
[312020149,1705552246762,-500.0,0.00022191,2]
[312020150,1705552246772,-500.0,0.00022191,2]
[312020151,1705552246781,-500.0,0.00022191,2]
[312020152,1705552246791,-500.0,0.00022191,2]
[312020153,1705552246800,-500.0,0.00022191,2]
[312020154,1705552246809,-500.0,0.00022191,2]
[312020155,1705552246818,-500.0,0.00022191,2]
[312020156,1705552246827,-500.0,0.00022191,2]
[312020157,1705552246836,-500.0,0.00022191,2]
[312020158,1705552246845,-500.0,0.00022191,2]
[312020159,1705552246854,-500.0,0.00022191,2]
[312020160,1705552246863,-500.0,0.00022191,2]
[312020161,1705552246873,-568.32247372,0.00022191,2]
[312020162,1705552246887,-285.62729271,0.00022191,2]
[312020163,1705552246897,-500.0,0.00022191,2]
[312020164,1705552246906,-500.0,0.00022191,2]
[312020165,1705552246918,-500.0,0.00022191,2]
[312020166,1705552246927,-500.0,0.00022191,2]
[312020167,1705552246936,-500.0,0.00022191,2]
[312020168,1705552246945,-500.0,0.00022191,2]
[312020169,1705552246954,-500.0,0.00022191,2]
[312020170,1705552246963,-500.0,0.00022191,2]
[312020171,1705552246973,-408.40325069,0.00022191,2]
[312020172,1705552246982,-500.0,0.00022191,2]
[312020173,1705552246991,-500.0,0.00022191,2]
[312020174,1705552247000,-500.0,0.00022191,2]
[312020175,1705552247009,-500.0,0.00022191,2]
[312020176,1705552247018,-500.0,0.00022191,2]
[312020177,1705552247027,-313.72,0.00022191,2]
[312020178,1705552247036,-500.0,0.00022191,2]
[312020179,1705552247045,-182.71562763,0.00022191,2]
[312020180,1705552247054,-500.0,0.00022191,2]
[312020181,1705552247064,-500.0,0.00022191,2]
[312020182,1705552247073,-500.0,0.00022191,2]
[312020183,1705552247082,-500.0,0.00022191,2]
[312020184,1705552247091,-303.48838846,0.00022191,2]
[312020185,1705552247101,-500.0,0.00022191,2]
[312020186,1705552247110,-500.0,0.00022191,2]
[312020187,1705552247119,-500.0,0.00022191,2]
[312020188,1705552247128,-281.1148791,0.00022191,2]
[312020189,1705552247138,-500.0,0.00022191,2]
[312020190,1705552247146,-500.0,0.00022191,2]
[312020191,1705552247156,-500.0,0.00022191,2]
[312020192,1705552247165,-500.0,0.00022191,2]
[312020193,1705552247174,-500.0,0.00022191,2]
[312020194,1705552247183,-500.0,0.00022191,2]
[312020195,1705552247192,-500.0,0.00022191,2]
[312020196,1705552247201,-500.0,0.00022191,2]
[312020197,1705552247210,-589.01084191,0.00022191,2]
[312020198,1705552247219,-500.0,0.00022191,2]
[312020199,1705552247228,-503.64462733,0.00022191,2]
[312020200,1705552247237,-500.0,0.00022191,2]
[312020201,1705552247246,-500.0,0.00022191,2]
[312020202,1705552247256,-500.0,0.00022191,2]
[312020203,1705552247264,-500.0,0.00022191,2]
[312020204,1705552247274,-500.0,0.00022191,2]
[312020205,1705552247283,-500.0,0.00022191,2]
[312020206,1705552247293,-500.0,0.00022191,2]
[312020207,1705552247303,-500.0,0.00022191,2]
[312020208,1705552247313,-160.12956733,0.00022191,2]
[312020209,1705552247324,-617.84326573,0.00022191,2]
[312020210,1705552247333,-500.0,0.00022191,2]
[312020211,1705552247342,-500.0,0.00022191,2]
[312020212,1705552247352,-500.0,0.00022191,2]
[312020213,1705552247362,-524.3300684,0.00022191,2]
[312020214,1705552247371,-500.0,0.00022191,2]
[312020215,1705552247381,-416.83688679,0.00022191,2]
[312020216,1705552247391,-500.0,0.00022191,2]
[312020217,1705552247400,-500.0,0.00022191,2]
[312020218,1705552247410,-500.0,0.00022191,2]
[312020219,1705552247420,-500.0,0.00022191,2]
[312020220,1705552247429,-543.38133575,0.00022191,2]
[312020221,1705552247440,-500.0,0.00022191,2]
[312020222,1705552247450,-500.0,0.00022191,2]
[312020223,1705552247459,-450.43,0.00022191,2]
[312020224,1705552247470,-500.0,0.00022191,2]
[312020225,1705552247479,-316.57204053,0.00022191,2]
[312020226,1705552247489,-500.0,0.00022191,2]
[312020227,1705552247498,-500.0,0.00022191,2]
[312020228,1705552247507,-500.0,0.00022191,2]
[312020229,1705552247516,-500.0,0.00022191,2]
[312020230,1705552247526,-500.0,0.00022191,2]
[312020231,1705552247537,-500.0,0.00022191,2]
[312020232,1705552247546,-500.0,0.00022191,2]
[312020233,1705552247556,-500.0,0.00022191,2]
[312020234,1705552247565,-500.0,0.00022191,2]
[312020235,1705552247574,-500.0,0.00022191,2]
[312020236,1705552247584,-500.0,0.00022191,2]
[312020237,1705552247594,-4258.76,0.00022191,2]
[312020238,1705552247605,-500.0,0.00022191,2]
[312020239,1705552247614,-500.0,0.00022191,2]
[312020240,1705552247625,-500.0,0.00022191,2]
[312020241,1705552247635,-500.0,0.00022191,2]
[312020242,1705552247645,-500.0,0.00022191,2]
[312020243,1705552247655,-500.0,0.00022191,2]
[312020244,1705552247664,-572.12,0.00022191,2]
[312020245,1705552247674,-500.0,0.00022191,2]
[312020246,1705552247683,-500.0,0.00022191,2]
[312020247,1705552247692,-500.0,0.00022191,2]
[312020248,1705552247702,-150.0,0.00022191,2]
[312020249,1705552247711,-500.0,0.00022191,2]
[312020250,1705552247721,-713.14,0.00022191,2]
[312020251,1705552247730,-164.77406993,0.00022191,2]
[312020252,1705552247739,-500.0,0.00022191,2]
[312020253,1705552247748,-500.0,0.00022191,2]
[312020254,1705552247758,-500.0,0.00022191,2]
[312020255,1705552247768,-500.0,0.00022191,2]
[312020256,1705552247778,-500.0,0.00022191,2]
[312020257,1705552247788,-500.0,0.00022191,2]
[312020258,1705552247797,-185.73759124,0.00022191,2]
[312020259,1705552247807,-500.0,0.00022191,2]
[312020260,1705552247818,-500.0,0.00022191,2]
[312020261,1705552247827,-500.0,0.00022191,2]
[312020262,1705552247836,-500.0,0.00022191,2]
[312020263,1705552247846,-598.99340158,0.00022191,2]
[312020264,1705552247855,-500.0,0.00022191,2]
[312020265,1705552247864,-500.0,0.00022191,2]
[312020266,1705552247874,-500.0,0.00022191,2]
[312020267,1705552247885,-500.0,0.00022191,2]
[312020268,1705552247894,-500.0,0.00022191,2]
[312020269,1705552247904,-635.07347122,0.00022191,2]
[312020270,1705552247915,-500.0,0.00022191,2]
[312020271,1705552247924,-500.0,0.00022191,2]
[312020272,1705552247936,-487.01117231,0.00022191,2]
[312020273,1705552247946,-500.0,0.00022191,2]
[312020274,1705552247956,-524.18083518,0.00022191,2]
[312020275,1705552247966,-500.0,0.00022191,2]
[312020276,1705552247977,-253.17,0.00022191,2]
[312020277,1705552247986,-500.0,0.00022191,2]
[312020278,1705552247996,-500.0,0.00022191,2]
[312020279,1705552248007,-522.55835865,0.00022191,2]
[312020280,1705552248017,-500.0,0.00022191,2]
[312020281,1705552248026,-500.0,0.00022191,2]
[312020282,1705552248035,-500.0,0.00022191,2]
[312020283,1705552248044,-500.0,0.00022191,2]
[312020284,1705552248054,-500.0,0.00022191,2]
[312020285,1705552248063,-741.13,0.00022191,2]
[312020286,1705552248073,-153.71,0.00022191,2]
[312020287,1705552248081,-571.47786164,0.00022191,2]
[312020288,1705552248091,-500.0,0.00022191,2]
[312020289,1705552248100,-515.86885816,0.00022191,2]
[312020290,1705552248109,-500.0,0.00022191,2]
[312020291,1705552248119,-500.0,0.00022191,2]
[312020292,1705552248128,-500.0,0.00022191,2]
[312020293,1705552248138,-629.23090919,0.00022191,2]
[312020294,1705552248147,-500.0,0.00022191,2]
[312020295,1705552248156,-500.0,0.00022191,2]
[312020296,1705552248166,-362.63625244,0.00022191,2]
[312020297,1705552248175,-500.0,0.00022191,2]
[312020298,1705552248185,-627.66,0.00022191,2]
[312020299,1705552248194,-500.0,0.00022191,2]
[312020300,1705552248203,-500.0,0.00022191,2]
[312020301,1705552248213,-523.95277485,0.00022191,2]
[312020302,1705552248222,-500.0,0.00022191,2]
[312020303,1705552248231,-500.0,0.00022191,2]
[312020304,1705552248241,-500.0,0.00022191,2]
[312020305,1705552248250,-307.08993126,0.00022191,2]
[312020306,1705552248260,-752.77,0.00022191,2]
[312020307,1705552248269,-500.0,0.00022191,2]
[312020308,1705552248278,-581.77,0.00022191,2]
[312020309,1705552248287,-1112.02,0.00022191,2]
[312020310,1705552248297,-227.88813604,0.00022191,2]
[312020311,1705552248306,-249.89878347,0.00022191,2]
[312020312,1705552248315,-1458.57,0.00022191,2]
[312020313,1705552248325,-500.0,0.00022191,2]
[312020314,1705552248334,-500.0,0.00022191,2]
[312020315,1705552248343,-500.0,0.00022191,2]
[312020316,1705552248354,-500.0,0.00022191,2]
[312020317,1705552248364,-500.0,0.00022191,2]
[312020318,1705552248373,-500.0,0.00022191,2]
[312020319,1705552248382,-517.76,0.00022191,2]
[312020320,1705552248391,-500.0,0.00022191,2]
[312020321,1705552248400,-500.0,0.00022191,2]
[312020322,1705552248410,-500.0,0.00022191,2]
[312020323,1705552248419,-601.87,0.00022191,2]
[312020324,1705552248428,-500.0,0.00022191,2]
[312020325,1705552248438,-500.0,0.00022191,2]
[312020326,1705552248447,-500.0,0.00022191,2]
[312020327,1705552248456,-500.0,0.00022191,2]
[312020328,1705552248465,-193.71516371,0.00022191,2]
[312020329,1705552248474,-575.48,0.00022191,2]
[312020330,1705552248484,-391.66854784,0.00022191,2]
[312020331,1705552248492,-500.0,0.00022191,2]
[312020332,1705552248501,-3462.72,0.00022191,2]
[312020333,1705552248511,-447.66813876,0.00022191,2]
[312020334,1705552248520,-1124.69,0.00022191,5]
[312020335,1705552248529,-1862.82,0.00022191,2]
[312020336,1705552248538,-513.0767008,0.00022191,2]
[312020337,1705552248547,-649.69,0.00022191,2]
[312020338,1705552248556,-712.61,0.00022191,2]
[312020339,1705552248565,-500.0,0.00022191,2]
[312020340,1705552248574,-2555.14,0.00022191,2]
[312020341,1705552248583,-500.0,0.00022191,2]
[312020342,1705552248591,-758.47,0.00022191,2]
[312020343,1705552248601,-500.0,0.00022191,2]
[312020344,1705552248610,-500.0,0.00022191,2]
[312020345,1705552248618,-500.0,0.00022191,2]
[312020346,1705552248627,-500.0,0.00022191,2]
[312020347,1705552248636,-500.0,0.00022191,2]
[312020348,1705552248646,-883.0,0.00022191,2]
[312020349,1705552248655,-472.47,0.00022191,2]
[312020350,1705552248663,-551.93,0.00022191,2]
[312020351,1705552248672,-1689.08,0.00022191,2]
[312020352,1705552248681,-1208.91,0.00022191,2]
[312020353,1705552248691,-500.0,0.00022191,2]
[312020354,1705552248700,-500.0,0.00022191,2]
[312020355,1705552248709,-4816.7,0.00022191,2]
[312020356,1705552248718,-500.0,0.00022191,2]
[312020357,1705552248728,-500.0,0.00022191,2]
[312020358,1705552248737,-12340.84,0.00022191,2]
[312020359,1705552248746,-500.0,0.00022191,2]
[312020360,1705552248756,-2260.39,0.00022191,2]
[312020361,1705552248765,-500.0,0.00022191,2]
[312020362,1705552248775,-228.99581713,0.00022191,2]
[312020363,1705552248784,-500.0,0.00022191,2]
[312020364,1705552248794,-659.01,0.00022191,2]
[312020365,1705552248803,-500.0,0.00022191,2]
[312020366,1705552248812,-4372.22,0.00022191,2]
[312020367,1705552248821,-1674.5,0.00022191,2]
[312020368,1705552248830,-795.25,0.00022191,2]
[312020369,1705552248840,-500.0,0.00022191,2]
[312020370,1705552248850,-976.07,0.00022191,2]
[312020371,1705552248859,-2142.64,0.00022191,2]
[312020372,1705552248868,-500.0,0.00022191,2]
[312020373,1705552248882,-500.0,0.00022191,2]
[312020374,1705552248892,-500.0,0.00022191,2]
[312020375,1705552248901,-500.0,0.00022191,2]
[312020376,1705552248910,-500.0,0.00022191,2]
[312020377,1705552248921,-1397.51,0.00022191,2]
[312020378,1705552248930,-1582.61,0.00022191,2]
[312020379,1705552248940,-639.39,0.00022191,2]
[312020380,1705552248950,-500.0,0.00022191,2]
[312020381,1705552248959,-500.0,0.00022191,2]
[312020382,1705552248969,-1078.61,0.00022191,2]
[312020383,1705552248978,-500.0,0.00022191,2]
[312020384,1705552248987,-889.36,0.00022191,2]
[312020385,1705552248997,-2351.56,0.00022191,2]
[312020386,1705552249006,-1118.0,0.00022191,2]
[312020387,1705552249015,-500.0,0.00022191,2]
[312020388,1705552249025,-620.87,0.00022191,2]
[312020389,1705552249034,-663.27,0.00022191,2]
[312020390,1705552249043,-2569.01,0.00022191,2]
[312020391,1705552249054,-500.0,0.00022191,2]
[312020392,1705552249063,-716.72,0.00022191,2]
[312020393,1705552249073,-500.0,0.00022191,2]
[312020394,1705552249082,-500.0,0.00022191,2]
[312020395,1705552249092,-3748.89,0.00022191,2]
[312020396,1705552249103,-729.94,0.00022191,2]
[312020397,1705552249112,-500.0,0.00022191,2]
[312020398,1705552249121,-1640.59,0.00022191,2]
[312020399,1705552249130,-500.0,0.00022191,2]